bitfinex/quotes_BTCUSD_20240810
["timestamp","ask_amount","ask_price","bid_price","bid_amount"]
[1723250593139,0.329579,60684.0,60672.0,0.1105]
[1723250593335,0.32860592,60683.0,60676.0,0.08184646]
[1723250593781,0.000833,60685.0,60678.0,0.524107]
[1723250594036,0.000833,60685.0,60677.0,0.00329591]
[1723250594037,0.000833,60685.0,60669.0,0.1105]
[1723250594038,0.329629,60675.0,60669.0,0.1105]
[1723250594239,0.000833,60685.0,60669.0,0.1309652]
[1723250594458,0.329576,60684.0,60669.0,0.1309652]
[1723250594669,0.000833,60685.0,60670.0,0.08184646]
[1723250594899,0.16381492,60683.0,60671.0,0.1105]
[1723250595106,0.000833,60685.0,60684.0,0.44113446]
[1723250595306,0.000833,60685.0,60684.0,0.81482391]
[1723250595523,0.013833,60685.0,60684.0,1.30821483]
[1723250595733,0.82045274,60722.0,60684.0,1.30821483]
[1723250595734,0.329413,60714.0,60686.0,0.01]
[1723250595943,0.49107874,60722.0,60684.0,0.28977483]
[1723250595944,0.49107874,60704.0,60703.0,0.164736]
[1723250596152,0.164696,60718.0,60704.0,0.1105]
[1723250596367,0.16469,60720.0,60712.0,0.164712]
[1723250596586,0.0001,60729.0,60716.0,0.08184646]
[1723250596790,0.164692,60720.0,60717.0,0.1945]
[1723250596998,0.0001,60729.0,60700.0,0.09184646]
[1723250596999,0.16381492,60719.0,60705.0,0.084]
[1723250597201,0.164739,60702.0,60701.0,0.1105]
[1723250597419,0.65803192,60702.0,60701.0,0.1105]
[1723250597865,0.164766,60692.0,60691.0,0.1105]
[1723250598072,0.65811292,60692.0,60691.0,0.1105]
[1723250598288,0.264766,60692.0,60691.0,0.01105]
[1723250598499,0.264766,60692.0,60677.0,0.08184646]
[1723250598500,0.59334692,60692.0,60677.0,0.08184646]
[1723250598738,0.0886,60698.0,60680.0,0.1105]
[1723250598739,0.494388,60681.0,60680.0,0.1105]
[1723250598946,0.98779492,60681.0,60680.0,0.1105]
[1723250599166,0.164823,60671.0,60668.0,0.093152]
[1723250599369,0.164828,60669.0,60668.0,0.093152]
[1723250599579,0.329657,60669.0,60668.0,0.093152]
[1723250599784,0.329657,60669.0,60668.0,0.009152]
[1723250599984,0.494485,60669.0,60668.0,0.009152]
[1723250600230,0.824142,60669.0,60668.0,0.009152]
[1723250600520,0.65829992,60669.0,60668.0,0.009152]
[1723250600726,0.98795692,60669.0,60668.0,0.009152]
[1723250601120,0.65829992,60669.0,60668.0,0.009152]
[1723250601570,1.08795692,60669.0,60668.0,0.025152]
[1723250601723,1.08795692,60669.0,60668.0,0.016152]
[1723250602104,1.08795692,60669.0,60668.0,0.012152]
[1723250602305,1.42761392,60669.0,60668.0,0.012152]
[1723250602549,1.55161392,60669.0,60668.0,0.019152]
[1723250602732,1.72176191,60669.0,60668.0,0.019152]
[1723250603743,1.69876191,60669.0,60668.0,0.012152]
[1723250603962,0.75829992,60669.0,60668.0,0.012152]
[1723250604195,0.43164292,60669.0,60668.0,0.0209572]
[1723250604404,0.76129992,60669.0,60668.0,0.0209572]
[1723250604626,0.006,60669.0,60668.0,0.0219572]
[1723250604848,0.01,60693.0,60668.0,0.0219572]
[1723250604849,0.000833,60685.0,60669.0,0.435556]
[1723250605075,0.000833,60685.0,60676.0,0.08184646]
[1723250605076,0.16381492,60684.0,60676.0,0.08184646]
[1723250605294,0.164802,60679.0,60677.0,0.1059]
[1723250605509,0.16381492,60684.0,60677.0,0.1059]
[1723250605510,0.164797,60681.0,60677.0,0.1059]
[1723250605724,0.164797,60681.0,60677.0,0.14115615]
[1723250605725,0.16381492,60680.0,60677.0,0.14115615]
[1723250605956,0.164804,60678.0,60677.0,0.14115615]
[1723250606167,0.16482,60672.0,60671.0,0.1059]
[1723250606389,0.16482,60672.0,60668.0,0.009152]
[1723250606390,0.164828,60669.0,60668.0,0.009152]
[1723250606609,0.98795692,60669.0,60668.0,0.009152]
[1723250606871,0.65829992,60669.0,60668.0,0.009152]
[1723250607068,0.98795692,60669.0,60668.0,0.009152]
[1723250607224,1.41761392,60669.0,60668.0,0.009152]
[1723250607425,1.52861392,60669.0,60668.0,0.009152]
[1723250607846,1.55161392,60669.0,60668.0,0.009152]
[1723250608058,1.52861392,60669.0,60668.0,0.009152]
[1723250608265,1.52861392,60669.0,60668.0,0.014152]
[1723250608680,1.61731392,60669.0,60668.0,0.013152]
[1723250608958,1.61731392,60669.0,60668.0,0.010152]
[1723250608959,2.15853818,60669.0,60668.0,0.010152]
[1723250609150,1.93944573,60669.0,60668.0,0.010152]
[1723250609360,1.50931392,60669.0,60668.0,0.009152]
[1723250609581,1.42361392,60669.0,60668.0,0.010152]
[1723250610323,1.09395692,60669.0,60668.0,0.010152]
[1723250610531,1.09095692,60669.0,60668.0,0.010152]
[1723250610749,1.42061392,60669.0,60668.0,0.010152]
[1723250610940,1.09395692,60669.0,60668.0,0.010152]
[1723250611144,1.09095692,60669.0,60668.0,0.010152]
[1723250611373,1.09295692,60669.0,60668.0,0.010152]
[1723250611592,1.41761392,60669.0,60668.0,0.009152]
[1723250611816,1.42061392,60669.0,60668.0,0.010152]
[1723250612015,1.42561392,60669.0,60668.0,0.011152]
[1723250613024,1.09595692,60669.0,60668.0,0.011152]
[1723250613436,1.09595692,60669.0,60668.0,0.117052]
[1723250613437,0.76629992,60669.0,60668.0,0.117052]
[1723250613650,0.76629992,60669.0,60668.0,0.1287572]
[1723250613861,0.76629992,60669.0,60668.0,0.011152]
[1723250613862,1.42561392,60669.0,60668.0,0.011152]
[1723250614591,1.62531392,60669.0,60668.0,0.011152]
[1723250614827,1.80431716,60669.0,60668.0,0.011152]
[1723250615794,1.42561392,60669.0,60668.0,0.011152]
[1723250616000,1.42561392,60669.0,60668.0,0.117052]
[1723250616001,1.09595692,60669.0,60668.0,0.117052]
[1723250616221,1.09595692,60669.0,60668.0,0.1287572]
[1723250616694,1.09595692,60669.0,60668.0,0.117052]
[1723250616959,1.09595692,60669.0,60668.0,0.011152]
[1723250617171,2.29722635,60669.0,60668.0,0.002152]
[1723250617909,2.30094778,60669.0,60668.0,0.002152]
[1723250618126,2.46509748,60669.0,60668.0,0.002152]
[1723250618365,2.99932448,60669.0,60668.0,0.002152]
[1723250618597,2.98152,60669.0,60668.0,0.002152]
[1723250618831,3.680151,60669.0,60668.0,0.002152]
[1723250619079,3.652748,60669.0,60668.0,0.002152]
[1723250619288,3.252174,60669.0,60668.0,0.001152]
[1723250620212,2.722517,60662.0,60661.0,7e-07]
[1723250620484,3.38461357,60662.0,60661.0,7e-07]
[1723250620736,3.48461357,60662.0,60661.0,7e-07]
[1723250621003,4.22361357,60662.0,60661.0,7e-07]
[1723250621195,4.22361357,60662.0,60653.0,0.009152]
[1723250621196,2.722803,60654.0,60653.0,7e-07]
[1723250621428,3.31777057,60654.0,60653.0,7e-07]
[1723250621697,2.97803157,60654.0,60653.0,7e-07]
[1723250621910,2.85107484,60654.0,60653.0,7e-07]
[1723250622138,2.86024363,60654.0,60653.0,7e-07]
[1723250622353,3.03839333,60654.0,60653.0,7e-07]
[1723250622565,2.87424363,60654.0,60653.0,7e-07]
[1723250623037,2.87424363,60654.0,60625.0,0.0026304]
[1723250623038,2.87424363,60654.0,60617.0,0.009152]
[1723250623039,0.01,60624.0,60617.0,0.009152]
[1723250623363,1.569658,60620.0,60617.0,0.009152]
[1723250623561,1.569658,60620.0,60612.0,0.0015]
[1723250623562,0.494943,60613.0,60612.0,0.0015]
[1723250623803,0.924905,60613.0,60612.0,0.0015]
[1723250624266,1.42868192,60613.0,60612.0,0.0015]
[1723250624520,1.50376534,60613.0,60612.0,0.0015]
[1723250625258,1.50376534,60613.0,60612.0,0.0025]
[1723250625259,1.51776534,60613.0,60612.0,0.0025]
[1723250625506,1.51776534,60613.0,60607.0,0.009163]
[1723250625507,0.936972,60608.0,60607.0,0.009163]
[1723250625742,1.53077592,60608.0,60607.0,0.009163]
[1723250625958,1.99503716,60608.0,60607.0,0.009163]
[1723250626977,1.65504816,60608.0,60607.0,0.009163]
[1723250627975,1.66904816,60608.0,60607.0,0.010163]
[1723250628188,1.19005916,60608.0,60607.0,0.009163]
[1723250628353,0.31843434,60608.0,60607.0,0.009163]
[1723250628562,0.31843434,60608.0,60607.0,0.18090946]
[1723250628563,0.014,60608.0,60607.0,0.18090946]
[1723250628773,0.19081492,60608.0,60607.0,0.17706625]
[1723250628995,0.027,60608.0,60607.0,0.099063]
[1723250629196,0.027,60608.0,60607.0,0.34590646]
[1723250629428,0.027,60608.0,60607.0,0.78000046]
[1723250629628,0.027,60608.0,60607.0,1.10999446]
[1723250630082,0.027,60608.0,60607.0,1.43998846]
[1723250630285,0.027,60608.0,60607.0,1.11099446]
[1723250630286,0.041,60608.0,60607.0,1.11099446]
[1723250630698,0.013,60608.0,60607.0,1.10899446]
[1723250630891,0.49107874,60627.0,60621.0,0.164959]
[1723250631066,0.16381492,60626.0,60622.0,0.1041]
[1723250631322,0.329832,60637.0,60622.0,0.1041]
[1723250631323,0.329838,60636.0,60623.0,0.0889]
[1723250631497,0.16381492,60635.0,60625.0,0.1041]
[1723250631662,0.085,60649.0,60624.0,0.02748465]
[1723250631663,0.164914,60638.0,60629.0,0.08184646]
[1723250631866,0.16381492,60637.0,60629.0,0.08184646]
[1723250632100,0.329786,60646.0,60631.0,0.1041]
[1723250632300,0.329793,60644.0,60631.0,0.1041]
[1723250632453,0.32871392,60643.0,60636.0,0.1041]
[1723250632659,0.16381492,60643.0,60639.0,0.164909]
[1723250632851,0.16381492,60643.0,60637.0,0.0889]
[1723250633573,0.32976,60651.0,60639.0,0.1041]
[1723250633798,0.16381492,60650.0,60645.0,0.1041]
[1723250633998,0.164891,60646.0,60645.0,0.14531854]
[1723250634326,0.329771,60648.0,60645.0,0.1041]
[1723250634542,0.164891,60646.0,60645.0,0.1041]
[1723250635084,0.16381492,60647.0,60645.0,0.1041]
[1723250635313,0.164891,60646.0,60645.0,0.1041]
[1723250635513,0.33370592,60646.0,60645.0,0.1041]
[1723250635728,0.33370592,60646.0,60645.0,0.11451]
[1723250635927,0.33370592,60646.0,60638.0,0.1041]
[1723250635928,0.16491,60639.0,60638.0,0.1041]
[1723250636326,0.32872492,60639.0,60638.0,0.1041]
[1723250636528,0.32872492,60639.0,60632.0,0.1041]
[1723250636529,0.164926,60633.0,60632.0,0.1041]
[1723250636705,0.164926,60633.0,60632.0,0.1234]
[1723250637029,0.164926,60633.0,60632.0,0.1041]
[1723250637030,0.65859392,60633.0,60632.0,0.1041]
[1723250637609,0.65859392,60633.0,60624.0,0.164949]
[1723250637610,0.26381492,60633.0,60624.0,0.1041]
[1723250637835,0.329875,60629.0,60624.0,0.1041]
[1723250638034,0.16381492,60628.0,60624.0,0.1041]
[1723250638236,0.16381492,60628.0,60625.0,0.0434011]
[1723250638463,0.16381492,60628.0,60624.0,0.269051]
[1723250638670,0.16381492,60628.0,60624.0,0.1041]
[1723250638877,0.16381492,60628.0,60624.0,0.1131]
[1723250638878,0.32875592,60628.0,60624.0,0.1131]
[1723250639080,0.16381492,60628.0,60624.0,0.27805]
[1723250639640,0.1902,60648.0,60624.0,0.1131]
[1723250639642,0.329733,60656.0,60634.0,0.164921]
[1723250639872,0.49107874,60641.0,60635.0,0.1047]
[1723250640104,0.164914,60638.0,60635.0,0.1047]
[1723250640347,0.01,60658.0,60636.0,0.03514745]
[1723250640618,0.16381492,60652.0,60639.0,0.1047]
[1723250640932,0.329795,60644.0,60639.0,0.1047]
[1723250641128,0.16381492,60643.0,60640.0,0.01938]
[1723250641363,0.00070561,60641.0,60640.0,0.184287]
[1723250641599,0.00070561,60641.0,60640.0,0.514102]
[1723250641819,0.00070561,60641.0,60640.0,0.618802]
[1723250642049,0.00070561,60641.0,60640.0,0.12408]
[1723250642323,0.429772,60648.0,60640.0,0.12408]
[1723250642324,0.164892,60646.0,60640.0,0.12408]
[1723250642552,0.264886,60648.0,60642.0,0.164901]
[1723250642782,0.066055,60654.0,60641.0,0.3841091]
[1723250643016,0.329719,60658.0,60649.0,0.1047]
[1723250643017,0.16381492,60653.0,60649.0,0.1047]
[1723250643249,0.16381492,60653.0,60649.0,0.269582]
[1723250643471,0.16381492,60653.0,60649.0,0.1047]
[1723250643698,0.005,60652.0,60650.0,0.02711039]
[1723250643919,0.16881492,60652.0,60650.0,0.02711039]
[1723250644155,0.02594309,60669.0,60653.0,0.164872]
[1723250644156,0.003,60654.0,60653.0,0.164872]
[1723250644404,0.02594309,60669.0,60668.0,0.269531]
[1723250644405,0.0001,60669.0,60668.0,0.269531]
[1723250644670,0.0001,60669.0,60668.0,0.12419465]
[1723250645127,0.0001,60669.0,60668.0,1.11929811]
[1723250645814,0.0001,60669.0,60668.0,0.78963511]
[1723250646063,0.0001,60669.0,60668.0,1.44896111]
[1723250646517,0.0001,60669.0,60668.0,1.11929811]
[1723250646969,0.0001,60669.0,60668.0,1.62277603]
[1723250647244,0.000833,60685.0,60668.0,1.62277603]
[1723250647245,0.000833,60685.0,60684.0,0.494364]
[1723250647445,0.32943292,60685.0,60684.0,0.1047]
[1723250647658,0.000833,60685.0,60684.0,0.1047]
[1723250648708,0.001833,60685.0,60684.0,0.1047]
[1723250648855,0.161708,60689.0,60684.0,0.1047]
[1723250649199,0.164771,60690.0,60684.0,0.269487]
[1723250649353,0.32858592,60690.0,60685.0,0.06023756]
[1723250650160,0.164775,60689.0,60685.0,0.06023756]
[1723250650373,0.16381492,60690.0,60685.0,0.06023756]
[1723250650374,0.167772,60690.0,60685.0,0.06023756]
[1723250650574,0.003,60690.0,60685.0,0.22502156]
[1723250650820,0.164772,60690.0,60685.0,0.06023756]
[1723250651032,0.329519,60695.0,60686.0,0.03307236]
[1723250651230,0.164779,60687.0,60686.0,0.03307236]
[1723250651432,0.00832,60694.0,60686.0,0.03307236]
[1723250651632,0.004,60690.0,60687.0,0.1047]
[1723250651952,0.004,60690.0,60688.0,0.00329517]
[1723250652202,0.004,60690.0,60689.0,0.40563795]
[1723250652427,0.004,60690.0,60689.0,0.73518695]
[1723250652664,0.004,60690.0,60689.0,0.40563795]
[1723250652889,0.001,60690.0,60689.0,0.73518695]
[1723250653112,0.00832,60694.0,60690.0,0.164769]
[1723250653337,0.00832,60694.0,60689.0,0.46571295]
[1723250653338,0.01132,60694.0,60693.0,0.164763]
[1723250653583,0.00832,60694.0,60693.0,0.1047]
[1723250654024,0.17308,60694.0,60693.0,0.1047]
[1723250654428,0.00832,60694.0,60693.0,0.1047]
[1723250654647,0.00832,60694.0,60693.0,0.12959488]
[1723250655080,0.01032,60694.0,60693.0,0.13059488]
[1723250655284,0.01032,60694.0,60693.0,0.62488488]
[1723250655455,0.01032,60694.0,60693.0,0.13059488]
[1723250656259,0.00832,60694.0,60693.0,0.12959488]
[1723250656455,0.00832,60694.0,60693.0,0.29435788]
[1723250656707,0.01032,60694.0,60693.0,0.95441188]
[1723250656923,0.00832,60694.0,60693.0,0.95441188]
[1723250657129,0.00832,60694.0,60693.0,0.95341188]
[1723250657552,0.00832,60694.0,60693.0,0.62688488]
[1723250657757,0.00832,60694.0,60693.0,1.5388538]
[1723250657960,0.00832,60694.0,60693.0,1.5688538]
[1723250658163,0.00832,60703.0,60702.0,0.928395]
[1723250658368,0.00832,60703.0,60702.0,1.11288526]
[1723250658571,0.00832,60703.0,60702.0,1.44236326]
[1723250659288,0.0001,60709.0,60708.0,1.355057]
[1723250659545,0.0001,60709.0,60708.0,1.51887192]
[1723250659760,0.0001,60709.0,60708.0,1.18942692]
[1723250660003,0.0001,60709.0,60708.0,0.21689488]
[1723250660229,0.0001,60709.0,60708.0,1.04050688]
[1723250660686,0.0001,60709.0,60708.0,1.05050688]
[1723250660892,0.0001,60709.0,60708.0,1.38795188]
[1723250661097,0.0001,60709.0,60708.0,1.37995188]
[1723250661338,0.0001,60709.0,60708.0,1.36995188]
[1723250661543,0.0001,60709.0,60708.0,1.04150688]
[1723250661759,0.0001,60709.0,60708.0,1.2143218]
[1723250662577,0.0001,60709.0,60708.0,1.5437668]
[1723250662983,0.0001,60709.0,60708.0,1.5337668]
[1723250663160,0.0001,60709.0,60708.0,1.5417668]
[1723250663364,0.0001,60709.0,60708.0,1.8373831]
[1723250663762,0.0001,60709.0,60708.0,1.8353831]
[1723250664244,0.264767,60729.0,60724.0,0.1044]
[1723250664360,0.429433,60729.0,60725.0,0.0269081]
[1723250664561,0.494022,60726.0,60725.0,0.0269081]
[1723250664760,0.164676,60725.0,60724.0,0.1044]
[1723250665048,0.164676,60725.0,60715.0,0.73304254]
[1723250665182,0.16381492,60724.0,60715.0,0.40363654]
[1723250665594,0.329339,60728.0,60716.0,0.329401]
[1723250665795,0.16468,60724.0,60718.0,0.164695]
[1723250665996,0.329354,60725.0,60719.0,0.09539026]
[1723250666223,0.16469,60720.0,60719.0,0.09539026]
[1723250666435,0.164696,60718.0,60715.0,0.40363654]
[1723250666799,0.164701,60716.0,60715.0,0.40363654]
[1723250667026,0.16381492,60724.0,60712.0,0.5307273]
[1723250667228,0.1,60723.0,60712.0,0.1044]
[1723250667560,0.1,60723.0,60719.0,0.005]
[1723250667561,0.49407,60720.0,60719.0,0.005]
[1723250667764,1.08726492,60720.0,60719.0,0.005]
[1723250667897,0.164708,60714.0,60707.0,0.1044]
[1723250668096,0.164708,60714.0,60708.0,0.24847215]
[1723250668518,0.164703,60716.0,60710.0,0.164716]
[1723250668718,0.164703,60716.0,60708.0,0.08375015]
[1723250668719,0.164705,60715.0,60709.0,0.16472]
[1723250668919,0.164705,60715.0,60710.0,0.164716]
[1723250669123,0.329393,60718.0,60708.0,0.24847115]
[1723250669326,0.164707,60714.0,60712.0,0.001]
[1723250669548,0.164707,60714.0,60712.0,0.002]
[1723250669724,0.1,60720.0,60712.0,0.001]
[1723250669940,0.1,60720.0,60715.0,0.1044]
[1723250669941,0.1,60719.0,60715.0,0.1044]
[1723250670142,0.264695,60719.0,60715.0,0.1044]
[1723250670339,0.1,60719.0,60716.0,0.0598534]
[1723250670562,0.1,60719.0,60715.0,0.1044]
[1723250670563,0.164696,60718.0,60715.0,0.1044]
[1723250670763,0.1,60717.0,60715.0,0.1044]
[1723250670983,0.164701,60716.0,60715.0,0.1044]
[1723250671253,0.1,60717.0,60715.0,0.1044]
[1723250671436,0.164701,60716.0,60711.0,0.1044]
[1723250671676,0.329403,60716.0,60712.0,0.0635088]
[1723250671879,0.1,60717.0,60704.0,0.40363654]
[1723250671880,0.329462,60705.0,60704.0,0.40363654]
[1723250672081,0.0848,60713.0,60703.0,0.1044]
[1723250672258,0.0848,60713.0,60698.0,0.1044]
[1723250672259,0.164747,60699.0,60698.0,0.1044]
[1723250673084,0.16381492,60705.0,60698.0,0.1044]
[1723250673306,0.1075,60717.0,60698.0,0.1044]
[1723250673307,0.16381492,60704.0,60698.0,0.1044]
[1723250673507,0.164742,60701.0,60698.0,0.1054]
[1723250673702,0.002,60699.0,60698.0,0.1054]
[1723250673921,0.002,60699.0,60698.0,0.1653663]
[1723250674128,0.164738,60703.0,60698.0,0.1044]
[1723250674308,0.32855192,60703.0,60698.0,0.1054]
[1723250674439,0.164739,60702.0,60698.0,0.1054]
[1723250674642,0.164739,60702.0,60698.0,0.1044]
[1723250675075,0.16381492,60703.0,60698.0,0.1044]
[1723250675286,0.16474,60702.0,60699.0,0.0433915]
[1723250675487,0.49329092,60703.0,60699.0,0.0433915]
[1723250675696,0.164743,60701.0,60698.0,0.1044]
[1723250675898,0.164743,60701.0,60698.0,0.1084]
[1723250676297,0.164743,60701.0,60698.0,0.1074]
[1723250676523,0.32948,60702.0,60698.0,0.1044]
[1723250676723,0.16681492,60703.0,60699.0,0.01044]
[1723250676724,0.164743,60701.0,60699.0,0.01044]
[1723250676932,0.164734,60704.0,60699.0,0.09228646]
[1723250677154,0.001,60701.0,60700.0,0.164743]
[1723250677354,0.164731,60705.0,60700.0,0.164743]
[1723250677610,0.329416,60714.0,60699.0,0.09228646]
[1723250677821,0.07350303,60716.0,60699.0,0.09228646]
[1723250677822,0.329383,60720.0,60709.0,0.1917]
[1723250678034,0.164717,60710.0,60709.0,0.1044]
[1723250678249,0.16381492,60719.0,60709.0,0.1044]
[1723250678443,0.164717,60710.0,60709.0,0.1044]
[1723250678652,0.329417,60714.0,60709.0,0.13175465]
[1723250678653,0.164714,60712.0,60709.0,0.13175465]
[1723250678894,0.329394,60718.0,60709.0,0.13175465]
[1723250679099,0.264698,60717.0,60709.0,0.13175465]
[1723250679299,0.1,60717.0,60712.0,0.16471]
[1723250679540,0.164701,60716.0,60711.0,0.164714]
[1723250679747,0.1,60718.0,60714.0,0.164704]
[1723250679951,0.269697,60718.0,60712.0,0.02847044]
[1723250680200,0.269697,60718.0,60713.0,0.164707]
[1723250680201,0.271695,60718.0,60713.0,0.164707]
[1723250680387,0.102,60718.0,60712.0,0.02847044]
[1723250680588,0.164704,60715.0,60713.0,0.06446005]
[1723250681040,0.000832,60716.0,60713.0,0.06446005]
[1723250681957,0.000832,60716.0,60714.0,0.08184646]
[1723250682315,0.000832,60716.0,60715.0,0.49411]
[1723250682533,0.000832,60716.0,60715.0,0.164703]
[1723250682764,0.000832,60716.0,60715.0,0.22052809]
[1723250682974,0.003832,60716.0,60715.0,0.54993509]
[1723250683146,0.000832,60716.0,60715.0,0.54993509]
[1723250683557,0.003832,60716.0,60715.0,0.22052809]
[1723250683758,0.000832,60716.0,60715.0,0.22052809]
[1723250683957,0.000832,60716.0,60715.0,0.54993509]
[1723250684227,0.000832,60716.0,60715.0,0.99484209]
[1723250684228,0.001832,60716.0,60715.0,0.99484209]
[1723250684427,0.001832,60716.0,60715.0,1.42344909]
[1723250684627,0.001832,60716.0,60715.0,1.58726401]
[1723250684831,0.001832,60716.0,60715.0,1.65113155]
[1723250685009,0.001832,60716.0,60715.0,1.58726401]
[1723250685431,0.000832,60716.0,60715.0,1.57626401]
[1723250685638,0.001832,60716.0,60715.0,1.58826401]
[1723250685780,0.001832,60716.0,60715.0,1.57526401]
[1723250685997,0.000832,60716.0,60715.0,1.57726401]
[1723250686193,0.001832,60716.0,60715.0,1.59126401]
[1723250686649,0.001832,60716.0,60715.0,0.18832509]
[1723250686972,0.001832,60716.0,60715.0,0.66843509]
[1723250687180,0.000832,60716.0,60715.0,0.65443509]
[1723250687390,0.001832,60716.0,60715.0,0.66843509]
[1723250687598,0.001832,60716.0,60715.0,0.18832509]
[1723250687745,0.001832,60716.0,60715.0,0.35302809]
[1723250688150,0.001832,60716.0,60715.0,0.68243509]
[1723250688357,0.001832,60716.0,60715.0,0.18832509]
[1723250688512,0.000832,60716.0,60715.0,0.1185]
[1723250689143,0.001832,60716.0,60715.0,0.028]
[1723250689662,0.000832,60716.0,60713.0,0.164707]
[1723250689884,0.000832,60716.0,60714.0,0.164706]
[1723250690083,0.000832,60716.0,60715.0,0.005]
[1723250690348,0.000832,60716.0,60715.0,0.2475593]
[1723250690543,0.000832,60716.0,60715.0,0.2525593]
[1723250690742,0.000832,60716.0,60715.0,0.3710593]
[1723250690896,0.000832,60716.0,60715.0,0.2063563]
[1723250691296,0.000832,60716.0,60715.0,0.1923563]
[1723250691807,0.000832,60716.0,60715.0,0.6864663]
[1723250692223,0.000832,60716.0,60715.0,0.6814663]
[1723250692654,0.000832,60716.0,60715.0,1.50409522]
[1723250692819,0.000832,60716.0,60715.0,1.51309522]
[1723250693228,0.001832,60716.0,60715.0,1.51909522]
[1723250693432,0.001832,60716.0,60715.0,1.0108733]
[1723250693593,0.000832,60716.0,60715.0,1.0108733]
[1723250693795,0.001832,60716.0,60715.0,0.1225]
[1723250694077,0.000832,60716.0,60715.0,0.60861]
[1723250694328,0.000832,60716.0,60715.0,1.4949269]
[1723250694642,0.000832,60716.0,60715.0,1.5269269]
[1723250694871,0.000832,60716.0,60715.0,1.67148885]
[1723250695104,0.000832,60716.0,60715.0,1.76951084]
[1723250695349,0.000832,60716.0,60715.0,1.14666371]
[1723250695583,0.000832,60716.0,60715.0,0.65729798]
[1723250695788,0.000832,60716.0,60715.0,0.264203]
[1723250696017,0.000832,60716.0,60715.0,0.278203]
[1723250696235,0.000832,60716.0,60715.0,0.62161]
[1723250696456,0.000832,60716.0,60715.0,0.278203]
[1723250696716,0.000832,60716.0,60715.0,0.60761]
[1723250696931,0.000832,60716.0,60715.0,0.59361]
[1723250697144,0.000832,60716.0,60715.0,0.60761]
[1723250697361,0.000832,60716.0,60715.0,0.292203]
[1723250697564,0.000832,60716.0,60715.0,0.59361]
[1723250697914,0.000832,60716.0,60715.0,0.62161]
[1723250698700,0.000832,60716.0,60715.0,0.1275]
[1723250699118,0.000832,60716.0,60715.0,0.292203]
[1723250699835,0.000832,60716.0,60715.0,0.1275]
[1723250700044,0.000832,60716.0,60715.0,0.292203]
[1723250700256,0.000832,60716.0,60715.0,0.62161]
[1723250700509,0.000832,60716.0,60715.0,1.60677738]
[1723250700746,0.000832,60716.0,60715.0,1.69513806]
[1723250700978,0.000832,60716.0,60715.0,2.12756051]
[1723250701191,0.000832,60716.0,60715.0,2.00454506]
[1723250701410,0.000832,60716.0,60715.0,0.51859895]
[1723250701638,0.000832,60716.0,60715.0,0.68674846]
[1723250701903,0.000832,60716.0,60715.0,1.02644579]
[1723250702144,0.000832,60716.0,60715.0,2.02683833]
[1723250702370,0.000832,60716.0,60715.0,2.8491206]
[1723250702569,0.000832,60716.0,60715.0,2.54683833]
[1723250702945,0.000832,60716.0,60715.0,2.56683833]
[1723250703182,0.000832,60716.0,60715.0,1.65143133]
[1723250703387,0.000832,60716.0,60715.0,1.7659113]
[1723250703586,0.000832,60716.0,60715.0,1.67543133]
[1723250703740,0.000832,60716.0,60715.0,1.73929333]
[1723250703948,0.000832,60716.0,60715.0,1.07584579]
[1723250704146,0.000832,60716.0,60715.0,0.67303879]
[1723250704452,0.000832,60716.0,60715.0,0.08034289]
[1723250704648,0.000832,60716.0,60715.0,0.0149141]
[1723250704849,0.000832,60716.0,60715.0,0.0009141]
[1723250705050,0.000832,60716.0,60715.0,0.3303211]
[1723250705250,0.000832,60716.0,60715.0,0.9989809]
[1723250705585,0.000832,60716.0,60715.0,1.58960282]
[1723250705777,0.000832,60716.0,60715.0,1.67196527]
[1723250706013,0.000832,60716.0,60715.0,1.74582499]
[1723250706222,0.000832,60716.0,60715.0,1.79246499]
[1723250706557,0.000832,60716.0,60715.0,2.16049692]
[1723250706759,0.000832,60716.0,60715.0,2.01006665]
[1723250706972,0.000832,60716.0,60715.0,2.17539157]
[1723250707174,0.000832,60716.0,60715.0,2.16734315]
[1723250707379,0.000832,60716.0,60715.0,1.66265965]
[1723250707580,0.09226067,60731.0,60726.0,0.1092]
[1723250707759,0.09226067,60731.0,60729.0,0.164664]
[1723250707956,0.09226067,60731.0,60730.0,0.493989]
[1723250708161,0.000832,60737.0,60733.0,0.164652]
[1723250708390,0.164653,60734.0,60729.0,0.164664]
[1723250708588,0.164655,60733.0,60728.0,0.164668]
[1723250708982,0.000832,60737.0,60727.0,0.0438552]
[1723250708983,0.329305,60734.0,60729.0,0.06470782]
[1723250709193,0.3293,60735.0,60729.0,0.06470782]
[1723250709398,0.164664,60730.0,60729.0,0.006]
[1723250709862,0.164668,60728.0,60722.0,0.164682]
[1723250710271,0.329332,60729.0,60719.0,0.329381]
[1723250710476,0.329261,60742.0,60715.0,0.2625304]
[1723250710477,0.16381492,60727.0,60715.0,0.2625304]
[1723250710704,0.2061,60726.0,60715.0,0.2625304]
[1723250710902,0.2061,60726.0,60718.0,0.06661669]
[1723250710903,0.164682,60723.0,60718.0,0.06661669]
[1723250711222,0.2061,60726.0,60718.0,0.06661669]
[1723250711223,0.1,60726.0,60718.0,0.06661669]
[1723250711465,0.1,60726.0,60723.0,0.164681]
[1723250711710,0.1,60726.0,60722.0,0.009]
[1723250711971,0.164677,60725.0,60722.0,0.009]
[1723250712198,0.26468,60724.0,60723.0,0.03495087]
[1723250712437,0.264679,60724.0,60723.0,0.03495087]
[1723250712675,0.264679,60724.0,60718.0,0.06661669]
[1723250712676,0.1,60724.0,60719.0,0.164691]
[1723250712921,0.164687,60722.0,60718.0,0.07761669]
[1723250713177,0.1,60724.0,60719.0,0.005]
[1723250713178,0.329364,60723.0,60719.0,0.005]
[1723250713414,0.329364,60723.0,60718.0,0.07761669]
[1723250713647,0.2061,60724.0,60719.0,0.05366845]
[1723250713648,0.164691,60720.0,60719.0,0.05366845]
[1723250714308,0.164691,60720.0,60718.0,0.011]